fUST/lending_fUST_20240901
["ID","MTS","AMOUNT","RATE_DAILY","PERIOD"]
[336818172,1725190251152,-500.0,0.00027941,15]
[336818173,1725190251162,-1235.74,0.00027941,15]
[336818174,1725190251171,-7508.14,0.00027941,15]
[336818175,1725190251181,-4510.39,0.00027941,15]
[336818176,1725190251190,-5144.95,0.00027941,15]
[336818177,1725190251200,-553.99,0.00027941,15]
[336818178,1725190251210,-1222.36,0.00027941,15]
[336818179,1725190251219,-734.35,0.00027941,15]
[336818180,1725190251229,-500.0,0.00027941,15]
[336818181,1725190251238,-225.72711,0.00027942,7]
[336818182,1725190251249,-151.0,0.00027942,7]
[336818183,1725190251259,-151.0,0.00027942,7]
[336818184,1725190251268,-500.0,0.00027942,15]
[336818185,1725190251278,-151.0,0.00027942,7]
[336818186,1725190251288,-151.0,0.00027942,7]
[336818187,1725190251297,-191.812137,0.00027942,7]
[336818188,1725190251307,-1750.1,0.00027942,15]
[336818189,1725190251316,-500.0,0.00027942,15]
[336818190,1725190251326,-151.0,0.00027942,3]
[336818191,1725190251336,-2695.32,0.00027942,15]
[336818192,1725190251346,-198.218826,0.00027942,7]
[336818193,1725190251356,-4145.03,0.00027942,15]
[336818194,1725190251365,-198.218826,0.00027942,7]
[336818195,1725190251375,-4014.95,0.00027942,15]
[336818196,1725190251385,-500.0,0.00027942,15]
[336818197,1725190251394,-151.0,0.00027942,7]
[336818198,1725190251404,-32741.1,0.00027942,8]
[336818199,1725190251413,-7452.19,0.00027942,15]
[336818200,1725190251424,-1410.77,0.00027942,15]
[336818201,1725190251434,-233.539968,0.00027942,7]
[336818202,1725190251443,-233.539968,0.00027942,7]
[336818203,1725190251453,-151.0,0.00027942,7]
[336818204,1725190251462,-533.66,0.00027942,15]
[336818205,1725190251471,-3313.62,0.00027942,15]
[336818206,1725190251481,-252.901881,0.00027942,7]
[336818207,1725190251491,-1583.29,0.00027942,15]
[336818208,1725190251502,-151.0,0.00027942,7]
[336818209,1725190251512,-500.0,0.00027942,15]
[336818210,1725190251521,-151.0,0.00027942,7]
[336818211,1725190251531,-500.0,0.00027942,15]
[336818212,1725190251540,-151.0,0.00027942,7]
[336818213,1725190251551,-2520.25,0.00027942,15]
[336818214,1725190251560,-2691.19,0.00027942,15]
[336818215,1725190251570,-422.080597,0.00027942,7]
[336818216,1725190251579,-422.080597,0.00027942,7]
[336818217,1725190251589,-195.395035,0.00027942,7]
[336818218,1725190251600,-195.395035,0.00027942,7]
[336818219,1725190251610,-500.0,0.00027942,15]
[336818220,1725190251619,-165.150562,0.00027942,7]
[336818221,1725190251630,-151.0,0.00027942,7]
[336818222,1725190251640,-165.150562,0.00027942,7]
[336818223,1725190251649,-891.84,0.00027942,15]
[336818224,1725190251659,-1013.73,0.00027942,15]
[336818225,1725190251668,-936.11,0.00027942,15]
[336818226,1725190251679,-500.0,0.00027942,15]
[336818227,1725190251688,-3466.34,0.00027942,15]
[336818228,1725190251698,-709.907493,0.00027942,7]
[336818229,1725190251707,-709.907493,0.00027942,7]
[336818230,1725190251718,-151.0,0.00027942,7]
[336818231,1725190251727,-574.88,0.00027942,15]
[336818232,1725190251736,-151.0,0.00027942,7]
[336818233,1725190251747,-4031.65,0.00027942,15]
[336818234,1725190251756,-151.0,0.00027942,7]
[336818235,1725190251766,-1852.87,0.00027942,15]
[336818236,1725190251775,-151.0,0.00027942,7]
[336818237,1725190251785,-500.0,0.00027943,15]
[336818238,1725190251794,-2143.4,0.00027943,15]
[336818239,1725190251803,-500.0,0.00027943,15]
[336818240,1725190251812,-500.0,0.00027943,15]
[336818241,1725190251822,-500.0,0.00027943,15]
[336818242,1725190251831,-598.72166686,0.00027943,15]
[336818243,1725190251841,-500.0,0.00027943,15]
[336818244,1725190251850,-913.5,0.00027943,15]
[336818245,1725190251864,-957.06,0.00027943,15]
[336818246,1725190251874,-255.88043075,0.00027943,15]
[336818247,1725190251884,-500.0,0.00027943,15]
[336818248,1725190251894,-500.0,0.00027943,15]
[336818249,1725190251904,-607.13,0.00027943,15]
[336818250,1725190251914,-151.0,0.00027943,7]
[336818251,1725190251925,-500.0,0.00027943,15]
[336818252,1725190251935,-1295.04,0.00027943,15]
[336818253,1725190251945,-151.0,0.00027943,7]
[336818254,1725190251955,-500.0,0.00027943,15]
[336818255,1725190251965,-503.83603086,0.00027943,15]
[336818256,1725190251975,-151.0,0.00027943,7]
[336818257,1725190251985,-500.0,0.00027943,15]
[336818258,1725190251995,-500.0,0.00027943,15]
[336818259,1725190252005,-151.0,0.00027943,7]
[336818260,1725190252015,-500.0,0.00027943,15]
[336818261,1725190252025,-500.0,0.00027943,15]
[336818262,1725190252035,-500.0,0.00027943,15]
[336818263,1725190252045,-540.26,0.00027943,15]
[336818264,1725190252055,-151.0,0.00027943,7]
[336818265,1725190252064,-1687.85,0.00027943,15]
[336818266,1725190252074,-1256.23,0.00027943,15]
[336818267,1725190252084,-500.0,0.00027943,15]
[336818268,1725190252094,-670.09,0.00027943,15]
[336818269,1725190252104,-151.0,0.00027943,7]
[336818270,1725190252114,-910.82,0.00027943,15]
[336818271,1725190252125,-710.04,0.00027943,15]
[336818272,1725190252135,-500.0,0.00027943,15]
[336818273,1725190252145,-151.0,0.00027943,7]
[336818274,1725190252154,-1102.69,0.00027943,15]
[336818275,1725190252164,-1190.65,0.00027943,15]
[336818276,1725190252174,-556.69,0.00027943,15]
[336818277,1725190252322,-2371.33,0.00027943,15]
[336818278,1725190252349,-500.0,0.00027943,15]
[336818279,1725190252359,-151.0,0.00027943,3]
[336818280,1725190252368,-560.63,0.00027943,15]
[336818281,1725190252377,-198.218826,0.00027943,7]
[336818282,1725190252386,-1985.26,0.00027943,15]
[336818283,1725190252396,-198.218826,0.00027943,7]
[336818284,1725190252406,-6498.82,0.00027943,15]
[336818285,1725190252415,-500.0,0.00027943,15]
[336818286,1725190252425,-548.33591432,0.00027943,15]
[336818287,1725190252439,-542.64,0.00027943,15]
[336818288,1725190252448,-151.0,0.00027943,7]
[336818289,1725190252458,-500.0,0.00027943,15]
[336818290,1725190252467,-500.0,0.00027943,15]
[336818291,1725190252477,-500.0,0.00027943,15]
[336818292,1725190252487,-500.0,0.00027943,15]
[336818293,1725190252497,-834.9,0.00027943,15]
[336818294,1725190252507,-500.0,0.00027943,15]
[336818295,1725190252516,-500.0,0.00027943,15]
[336818296,1725190252526,-1619.73,0.00027943,15]
[336818297,1725190252535,-233.539968,0.00027943,7]
[336818298,1725190252549,-1079.6,0.00027943,15]
[336818299,1725190252559,-500.0,0.00027943,15]
[336818300,1725190252568,-233.539968,0.00027943,7]
[336818301,1725190252578,-151.0,0.00027943,7]
[336818302,1725190252589,-623.31,0.00027943,15]
[336818303,1725190252599,-743.79,0.00027943,15]
[336818304,1725190252609,-500.0,0.00027943,15]
[336818305,1725190252619,-151.0,0.00027943,7]
[336818306,1725190252631,-708.75,0.00027943,15]
[336818307,1725190252641,-500.0,0.00027943,15]
[336818308,1725190252650,-151.0,0.00027943,7]
[336818309,1725190252659,-1914.34,0.00027943,15]
[336818310,1725190252669,-151.0,0.00027943,7]
[336818311,1725190252679,-422.080597,0.00027943,7]
[336818312,1725190252688,-3913.52,0.00027943,15]
[336818313,1725190252698,-195.395035,0.00027943,7]
[336818314,1725190252708,-422.080597,0.00027943,7]
[336818315,1725190252719,-195.395035,0.00027943,7]
[336818316,1725190252729,-5515.16,0.00027943,15]
[336818317,1725190252739,-165.150562,0.00027943,7]
[336818318,1725190252750,-151.0,0.00027943,7]
[336818319,1725190252760,-165.150562,0.00027943,7]
[336818320,1725190252769,-1204.33,0.00027943,15]
[336818321,1725190252779,-1053.79,0.00027943,15]
[336818322,1725190252788,-500.0,0.00027943,15]
[336818323,1725190252798,-709.907493,0.00027943,7]
[336818324,1725190252807,-709.907493,0.00027943,7]
[336818325,1725190252817,-13912.41,0.00027943,15]
[336818326,1725190252827,-500.0,0.00027943,15]
[336818327,1725190252836,-500.0,0.00027943,15]
[336818328,1725190252845,-579.21,0.00027943,15]
[336818329,1725190252855,-1301.12,0.00027943,15]
[336818330,1725190252865,-151.0,0.00027943,7]
[336818331,1725190252874,-1121.35,0.00027943,15]
[336818332,1725190252884,-151.0,0.00027943,7]
[336818333,1725190252894,-500.0,0.00027943,15]
[336818334,1725190252903,-151.0,0.00027943,7]
[336818335,1725190252913,-1253.94,0.00027943,15]
[336818336,1725190252923,-500.0,0.00027944,15]
[336818337,1725190252933,-500.0,0.00027944,15]
[336818338,1725190252944,-500.0,0.00027944,15]
[336818339,1725190252954,-500.0,0.00027944,15]
[336818340,1725190252964,-500.0,0.00027944,15]
[336818341,1725190252974,-505.79977222,0.00027944,15]
[336818342,1725190252984,-500.0,0.00027944,15]
[336818343,1725190252993,-500.0,0.00027944,15]
[336818344,1725190253005,-500.0,0.00027944,15]
[336818345,1725190253015,-200.0,0.00027944,7]
[336818346,1725190253025,-504.87629829,0.00027944,15]
[336818347,1725190253035,-500.0,0.00027944,15]
[336818348,1725190253045,-500.0,0.00027944,15]
[336818349,1725190253054,-500.0,0.00027944,15]
[336818350,1725190253064,-500.0,0.00027944,15]
[336818351,1725190253074,-500.0,0.00027944,15]
[336818352,1725190253084,-500.0,0.00027944,15]
[336818353,1725190253093,-567.53,0.00027944,15]
[336818354,1725190253103,-151.0,0.00027944,7]
[336818355,1725190253112,-500.0,0.00027944,15]
[336818356,1725190253121,-1049.89,0.00027944,15]
[336818357,1725190253131,-500.0,0.00027944,15]
[336818358,1725190253140,-500.0,0.00027944,15]
[336818359,1725190253150,-500.0,0.00027944,15]
[336818360,1725190253161,-500.0,0.00027944,15]
[336818361,1725190253171,-500.0,0.00027944,15]
[336818362,1725190253180,-446.30194305,0.00027944,15]
[336818363,1725190253190,-500.0,0.00027944,15]
[336818364,1725190253200,-313.38460656,0.00027944,15]
[336818365,1725190253209,-500.0,0.00027944,15]
[336818366,1725190253219,-500.0,0.00027944,15]
[336818367,1725190253228,-151.0,0.00027944,7]
[336818368,1725190253238,-500.0,0.00027944,15]
[336818369,1725190253250,-761.9,0.00027944,15]
[336818370,1725190253260,-264.773244,0.00027944,7]
[336818371,1725190253269,-264.773244,0.00027944,7]
[336818372,1725190253279,-500.0,0.00027944,15]
[336818373,1725190253288,-795.65,0.00027944,15]
[336818374,1725190253297,-500.0,0.00027944,15]
[336818375,1725190253308,-151.0,0.00027944,7]
[336818376,1725190253318,-151.0,0.00027944,7]
[336818377,1725190253327,-151.0,0.00027944,7]
[336818378,1725190253336,-764.37,0.00027944,15]
[336818379,1725190253346,-500.0,0.00027944,15]
[336818380,1725190253356,-500.0,0.00027944,15]
[336818381,1725190253364,-629.77,0.00027944,15]
[336818382,1725190253374,-151.0,0.00027944,7]
[336818383,1725190253384,-500.0,0.00027944,15]
[336818384,1725190253393,-1215.96,0.00027944,15]
[336818385,1725190253402,-500.0,0.00027944,15]
[336818386,1725190253412,-151.0,0.00027944,7]
[336818387,1725190253421,-500.0,0.00027944,15]
[336818388,1725190253430,-151.0,0.00027944,7]
[336818389,1725190253439,-500.0,0.00027944,15]
[336818390,1725190253448,-151.0,0.00027944,7]
[336818391,1725190253458,-500.0,0.00027944,15]
[336818392,1725190253467,-500.0,0.00027944,15]
[336818393,1725190253476,-505.35678504,0.00027944,15]
[336818394,1725190253486,-500.0,0.00027944,15]
[336818395,1725190253496,-500.0,0.00027944,15]
[336818396,1725190253506,-1170.7,0.00027944,15]
[336818397,1725190253515,-500.0,0.00027944,15]
[336818398,1725190253525,-500.0,0.00027944,15]
[336818399,1725190253535,-500.0,0.00027944,15]
[336818400,1725190253545,-500.0,0.00027944,15]
[336818401,1725190253557,-500.0,0.00027944,15]
[336818402,1725190253567,-500.0,0.00027944,15]
[336818403,1725190253576,-1085.86,0.00027944,15]
[336818404,1725190253586,-642.09,0.00027944,15]
[336818405,1725190253597,-500.0,0.00027944,15]
[336818406,1725190253606,-500.0,0.00027944,15]
[336818407,1725190253616,-739.39,0.00027944,15]
[336818408,1725190253627,-500.0,0.00027944,15]
[336818409,1725190253636,-500.0,0.00027944,15]
[336818410,1725190253646,-968.22,0.00027944,15]
[336818411,1725190253656,-500.0,0.00027944,15]
[336818412,1725190253665,-500.0,0.00027944,15]
[336818413,1725190253674,-1115.8,0.00027944,15]
[336818414,1725190253684,-500.0,0.00027944,15]
[336818415,1725190253693,-151.0,0.00027944,7]
[336818416,1725190253703,-500.0,0.00027944,15]
[336818417,1725190253713,-500.0,0.00027944,15]
[336818418,1725190253722,-731.19,0.00027944,15]
[336818419,1725190253732,-151.0,0.00027944,7]
[336818420,1725190253741,-151.0,0.00027944,7]
[336818421,1725190253752,-535.55,0.00027944,15]
[336818422,1725190253762,-195.395035,0.00027944,7]
[336818423,1725190253772,-668.48,0.00027944,15]
[336818424,1725190253781,-195.395035,0.00027944,7]
[336818425,1725190253791,-165.150562,0.00027944,7]
[336818426,1725190253800,-165.150562,0.00027944,7]
[336818427,1725190253810,-500.0,0.00027944,15]
[336818428,1725190253820,-504.91044754,0.00027944,15]
[336818429,1725190253830,-500.0,0.00027944,15]
[336818430,1725190253840,-802.33,0.00027944,15]
[336818431,1725190253849,-500.0,0.00027944,15]
[336818432,1725190253860,-500.0,0.00027944,15]
[336818433,1725190253869,-709.907493,0.00027944,7]
[336818434,1725190253879,-500.0,0.00027944,15]
[336818435,1725190253888,-709.907493,0.00027944,7]
[336818436,1725190253898,-500.0,0.00027944,15]
[336818437,1725190253909,-500.0,0.00027944,15]
[336818438,1725190253919,-151.0,0.00027944,7]
[336818439,1725190253930,-151.0,0.00027944,7]
[336818440,1725190253939,-313.28632313,0.00027944,15]
[336818441,1725190253949,-151.0,0.00027944,7]
[336818442,1725190253959,-500.0,0.00027945,15]
[336818443,1725190253969,-500.0,0.00027945,15]
[336818444,1725190253979,-500.0,0.00027945,15]
[336818445,1725190253988,-500.0,0.00027945,15]
[336818446,1725190253998,-500.0,0.00027945,15]
[336818447,1725190254007,-500.0,0.00027945,15]
[336818448,1725190254017,-500.0,0.00027945,15]
[336818449,1725190254026,-500.0,0.00027945,15]
[336818450,1725190254037,-151.0,0.00027945,7]
[336818451,1725190254047,-150.0,0.00027973,5]
[336818452,1725190254056,-500.0,0.00028013,15]
[336818453,1725190254066,-193.7269455,0.00028017,2]
[336818454,1725190254076,-1220.9720456,0.00028206,3]
[336818455,1725190254086,-610.4860228,0.00028207,3]
[336818456,1725190254096,-610.4860228,0.00028208,3]
[336818457,1725190254105,-5021.96,0.00028215,15]
[336818458,1725190254115,-741.43,0.00028215,15]
[336818459,1725190254125,-1278.04,0.00028215,15]
[336818460,1725190254134,-960.88,0.00028215,15]
[336818461,1725190254144,-1153.21,0.00028215,15]
[336818462,1725190254154,-815.48,0.00028215,15]
[336818463,1725190254164,-21602.6,0.00028215,15]
[336818464,1725190254173,-1097.19,0.00028215,15]
[336818465,1725190254183,-500.0,0.00028215,15]
[336818466,1725190254192,-1235.74,0.00028215,15]
[336818467,1725190254202,-7508.14,0.00028215,15]
[336818468,1725190254212,-4510.39,0.00028215,15]
[336818469,1725190254222,-5144.95,0.00028215,15]
[336818470,1725190254232,-553.99,0.00028215,15]
[336818471,1725190254242,-1222.36,0.00028215,15]
[336818472,1725190254252,-734.35,0.00028215,15]
[336818473,1725190254261,-500.0,0.00028215,15]
[336818474,1725190254271,-151.0,0.00028216,7]
[336818475,1725190254280,-500.0,0.00028216,15]
[336818476,1725190254289,-151.0,0.00028216,7]
[336818477,1725190254299,-151.0,0.00028216,7]
[336818478,1725190254308,-1750.1,0.00028216,15]
[336818479,1725190254318,-500.0,0.00028216,15]
[336818480,1725190254328,-164.477036,0.00028216,3]
[336818481,1725190254337,-2695.32,0.00028216,15]
[336818482,1725190254346,-198.218826,0.00028216,7]
[336818483,1725190254356,-4145.03,0.00028216,15]
[336818484,1725190254365,-198.218826,0.00028216,7]
[336818485,1725190254374,-4014.95,0.00028216,15]
[336818486,1725190254384,-500.0,0.00028216,15]
[336818487,1725190254393,-252.947185,0.00028216,7]
[336818488,1725190254402,-32741.1,0.00028216,8]
[336818489,1725190254412,-7452.19,0.00028216,15]
[336818490,1725190254422,-1410.77,0.00028216,15]
[336818491,1725190254432,-233.539968,0.00028216,7]
[336818492,1725190254441,-533.66,0.00028216,15]
[336818493,1725190254451,-151.0,0.00028216,7]
[336818494,1725190254460,-233.539968,0.00028216,7]
[336818495,1725190254469,-3313.62,0.00028216,15]
[336818496,1725190254479,-1583.29,0.00028216,15]
[336818497,1725190254488,-185.236689,0.00028216,7]
[336818498,1725190254498,-500.0,0.00028216,15]
[336818499,1725190254508,-500.0,0.00028216,15]
[336818500,1725190254518,-151.0,0.00028216,7]
[336818501,1725190254527,-189.031069,0.00028216,7]
[336818502,1725190254536,-2520.25,0.00028216,15]
[336818503,1725190254547,-2691.19,0.00028216,15]
[336818504,1725190254558,-422.080597,0.00028216,7]
[336818505,1725190254567,-422.080597,0.00028216,7]
[336818506,1725190254577,-195.395035,0.00028216,7]
[336818507,1725190254587,-195.395035,0.00028216,7]
[336818508,1725190254598,-500.0,0.00028216,15]
[336818509,1725190254607,-165.150562,0.00028216,7]
[336818510,1725190254616,-151.0,0.00028216,7]
[336818511,1725190254626,-891.84,0.00028216,15]
[336818512,1725190254636,-165.150562,0.00028216,7]
[336818513,1725190254647,-1013.73,0.00028216,15]
[336818514,1725190254656,-936.11,0.00028216,15]
[336818515,1725190254666,-500.0,0.00028216,15]
[336818516,1725190254676,-3466.34,0.00028216,15]
[336818517,1725190254686,-709.907493,0.00028216,7]
[336818518,1725190254695,-709.907493,0.00028216,7]
[336818519,1725190254705,-574.88,0.00028216,15]
[336818520,1725190254715,-4031.65,0.00028216,15]
[336818521,1725190254725,-151.0,0.00028216,7]
[336818522,1725190254735,-151.0,0.00028216,7]
[336818523,1725190254744,-1852.87,0.00028216,15]
[336818524,1725190254755,-151.0,0.00028216,7]
[336818525,1725190254764,-500.0,0.00028217,15]
[336818526,1725190254774,-2143.4,0.00028217,15]
[336818527,1725190254784,-500.0,0.00028217,15]
[336818528,1725190254794,-500.0,0.00028217,15]
[336818529,1725190254803,-500.0,0.00028217,15]
[336818530,1725190254813,-500.0,0.00028217,15]
[336818531,1725190254822,-151.0,0.00028217,7]
[336818532,1725190254833,-264.773244,0.00028217,7]
[336818533,1725190254842,-264.773244,0.00028217,7]
[336818534,1725190254852,-913.5,0.00028217,15]
[336818535,1725190254862,-957.06,0.00028217,15]
[336818536,1725190254872,-151.0,0.00028217,7]
[336818537,1725190254882,-189.00608033,0.00028217,15]
[336818538,1725190254892,-151.0,0.00028217,7]
[336818539,1725190254902,-500.0,0.00028217,15]
[336818540,1725190254912,-607.13,0.00028217,15]
[336818541,1725190254922,-500.0,0.00028217,15]
[336818542,1725190254933,-1295.04,0.00028217,15]
[336818543,1725190254942,-151.0,0.00028217,7]
[336818544,1725190254952,-500.0,0.00028217,15]
[336818545,1725190254961,-151.0,0.00028217,7]
[336818546,1725190254972,-500.0,0.00028217,15]
[336818547,1725190254983,-500.0,0.00028217,15]
[336818548,1725190254993,-151.0,0.00028217,7]
[336818549,1725190255003,-500.0,0.00028217,15]
[336818550,1725190255012,-500.0,0.00028217,15]
[336818551,1725190255023,-500.0,0.00028217,15]
[336818552,1725190255033,-540.26,0.00028217,15]
[336818553,1725190255043,-151.0,0.00028217,7]
[336818554,1725190255053,-1687.85,0.00028217,15]
[336818555,1725190255062,-1256.23,0.00028217,15]
[336818556,1725190255072,-500.0,0.00028217,15]
[336818557,1725190255081,-670.09,0.00028217,15]
[336818558,1725190255091,-910.82,0.00028217,15]
[336818559,1725190255100,-151.0,0.00028217,7]
[336818560,1725190255110,-710.04,0.00028217,15]
[336818561,1725190255129,-500.0,0.00028217,15]
[336818562,1725190255140,-151.0,0.00028217,7]
[336818563,1725190255150,-1102.69,0.00028217,15]
[336818564,1725190255160,-1190.65,0.00028217,15]
[336818565,1725190255170,-556.69,0.00028217,15]
[336818566,1725190255180,-2371.33,0.00028217,15]
[336818567,1725190255190,-500.0,0.00028217,15]
[336818568,1725190255200,-560.63,0.00028217,15]
[336818569,1725190255210,-198.218826,0.00028217,7]
[336818570,1725190255219,-1985.26,0.00028217,15]
[336818571,1725190255229,-198.218826,0.00028217,7]
[336818572,1725190255239,-6498.82,0.00028217,15]
[336818573,1725190255249,-500.0,0.00028217,15]
[336818574,1725190255259,-542.64,0.00028217,15]
[336818575,1725190255269,-500.0,0.00028217,15]
[336818576,1725190255279,-500.0,0.00028217,15]
[336818577,1725190255289,-500.0,0.00028217,15]
[336818578,1725190255298,-500.0,0.00028217,15]
[336818579,1725190255308,-834.9,0.00028217,15]
[336818580,1725190255317,-500.0,0.00028217,15]
[336818581,1725190255327,-500.0,0.00028217,15]
[336818582,1725190255336,-1619.73,0.00028217,15]
[336818583,1725190255346,-1079.6,0.00028217,15]
[336818584,1725190255356,-233.539968,0.00028217,7]
[336818585,1725190255366,-500.0,0.00028217,15]
[336818586,1725190255377,-233.539968,0.00028217,7]
[336818587,1725190255387,-151.0,0.00028217,7]
[336818588,1725190255397,-623.31,0.00028217,15]
[336818589,1725190255406,-743.79,0.00028217,15]
[336818590,1725190255416,-500.0,0.00028217,15]
[336818591,1725190255596,-708.75,0.00028217,15]
[336818592,1725190255606,-500.0,0.00028217,15]
[336818593,1725190255616,-1914.34,0.00028217,15]
[336818594,1725190255628,-422.080597,0.00028217,7]
[336818595,1725190255639,-3913.52,0.00028217,15]
[336818596,1725190255648,-422.080597,0.00028217,7]
[336818597,1725190255658,-5515.16,0.00028217,15]
[336818598,1725190255668,-151.0,0.00028217,7]
[336818599,1725190255677,-1204.33,0.00028217,15]
[336818600,1725190255691,-1053.79,0.00028217,15]
[336818601,1725190255701,-500.0,0.00028217,15]
[336818602,1725190255711,-709.907493,0.00028217,7]
[336818603,1725190255720,-709.907493,0.00028217,7]
[336818604,1725190255730,-13912.41,0.00028217,15]
[336818605,1725190255740,-500.0,0.00028217,15]
[336818606,1725190255750,-500.0,0.00028217,15]
[336818607,1725190255759,-579.21,0.00028217,15]
[336818608,1725190255769,-1301.12,0.00028217,15]
[336818609,1725190255779,-1121.35,0.00028217,15]
[336818610,1725190255789,-500.0,0.00028217,15]
[336818611,1725190255799,-151.0,0.00028217,7]
[336818612,1725190255809,-500.0,0.00028218,15]
[336818613,1725190255819,-320.81881202,0.00028218,15]
[336818614,1725190255829,-500.0,0.00028218,15]
[336818615,1725190255839,-500.0,0.00028218,15]
[336818616,1725190255849,-500.0,0.00028218,15]
[336818617,1725190255859,-500.0,0.00028218,15]
[336818618,1725190255868,-500.0,0.00028218,15]
[336818619,1725190255878,-500.0,0.00028218,15]
[336818620,1725190255888,-200.0,0.00028218,7]
[336818621,1725190255897,-500.0,0.00028218,15]
[336818622,1725190255908,-151.0,0.00028218,7]
[336818623,1725190255918,-176.90945779,0.00028218,15]
[336818624,1725190255928,-500.0,0.00028218,15]
[336818625,1725190255937,-500.0,0.00028218,15]
[336818626,1725190255947,-500.0,0.00028218,15]
[336818627,1725190255957,-500.0,0.00028218,15]
[336818628,1725190255966,-567.53,0.00028218,15]
[336818629,1725190255976,-500.0,0.00028218,15]
[336818630,1725190255986,-1049.89,0.00028218,15]
[336818631,1725190255995,-500.0,0.00028218,15]
[336818632,1725190256007,-500.0,0.00028218,15]
[336818633,1725190256017,-500.0,0.00028218,15]
[336818634,1725190256027,-500.0,0.00028218,15]
[336818635,1725190256037,-500.0,0.00028218,15]
[336818636,1725190256047,-500.0,0.00028218,15]
[336818637,1725190256056,-190.81037652,0.00028218,15]
[336818638,1725190256066,-500.0,0.00028218,15]
[336818639,1725190256076,-500.0,0.00028218,15]
[336818640,1725190256086,-761.9,0.00028218,15]
[336818641,1725190256095,-264.773244,0.00028218,7]
[336818642,1725190256105,-500.0,0.00028218,15]
[336818643,1725190256114,-264.773244,0.00028218,7]
[336818644,1725190256124,-795.65,0.00028218,15]
[336818645,1725190256134,-500.0,0.00028218,15]
[336818646,1725190256143,-764.37,0.00028218,15]
[336818647,1725190256153,-500.0,0.00028218,15]
[336818648,1725190256163,-500.0,0.00028218,15]
[336818649,1725190256173,-629.77,0.00028218,15]
[336818650,1725190256183,-500.0,0.00028218,15]
[336818651,1725190256192,-1215.96,0.00028218,15]
[336818652,1725190256201,-505.53041509,0.00028218,15]
[336818653,1725190256211,-151.0,0.00028218,7]
[336818654,1725190256220,-500.0,0.00028218,15]
[336818655,1725190256230,-275.027831,0.00028218,7]
[336818656,1725190256239,-500.0,0.00028218,15]
[336818657,1725190256249,-151.0,0.00028218,7]
[336818658,1725190256267,-245.43634297,0.00028218,15]
[336818659,1725190256277,-500.0,0.00028218,15]
[336818660,1725190256286,-500.0,0.00028218,15]
[336818661,1725190256296,-500.0,0.00028218,15]
[336818662,1725190256305,-1170.7,0.00028218,15]
[336818663,1725190256318,-500.0,0.00028218,15]
[336818664,1725190256328,-245.44866498,0.00028218,15]
[336818665,1725190256337,-500.0,0.00028218,15]
[336818666,1725190256347,-500.0,0.00028218,15]
[336818667,1725190256356,-374.2978642,0.00028218,15]
[336818668,1725190256366,-500.0,0.00028218,15]
[336818669,1725190256375,-1085.86,0.00028218,15]
[336818670,1725190256385,-642.09,0.00028218,15]
[336818671,1725190256394,-150.23300007,0.00028218,15]